[Event "Arisan Chess Ladies WGM 2019"]
[Site "Modra-Piesok"]
[Date "2019.09.18"]
[Round "6.3"]
[White "Kanakova, Natalie"]
[Black "Gvanceladze, Anna"]
[Result "1/2-1/2"]
[ECO "D10"]
[WhiteElo "2201"]
[BlackElo "2247"]
[Annotator "NA"]
[PlyCount "289"]
[EventDate "2019.09.14"]
[EventType "tourn"]
[EventCountry "SVK"]
[SourceTitle "playchess.com"]
[Source "ChessBase"]
[SourceQuality "1"]
[TimeControl "40/5400+30:1800+30"]

1. c4 {[%emt 0:00:00]} c6 {[%emt 0:00:00]} 2. d4 {[%emt 0:00:00]} d5 {[%emt 0:00:00]} 3. cxd5 {[%emt 0:00:01]} cxd5 {[%emt 0:00:00]} 4. Bg5 {[%emt 0:00:10]} Nf6 {[%emt 0:02:09]} 5. Bxf6 {[%emt 0:00:39]} gxf6 {[%emt 0:05:19]} 6. Nc3 {[%emt 0:01:32]} Nc6 {[%emt 0:02:49]} 7. e3 {[%emt 0:01:11]} e6 {[%emt 0:04:50]} 8. Bd3 {[%emt 0:02:35]} Bd7 {[%emt 0:01:32]} 9. Rc1 {[%emt 0:02:28]} Rc8 {[%emt 0:00:34]} 10. Nge2 {[%emt 0:03:48]} Bd6 {[%emt 0:03:28]} 11. O-O {[%emt 0:07:25]} f5 {[%emt 0:02:44]} 12. f3 {[%emt 0:14:05]} Qh4 {[%emt 0:02:26]} 13. f4 {[%emt 0:01:18]} Rg8 {[%emt 0:05:00]} 14. Rf3 {[%emt 0:03:34]} Rg4 {[%emt 0:05:15]} 15. Qe1 {[%emt 0:10:58]} Qf6 {[%emt 0:01:23]} 16. Kh1 {[%emt 0:06:00]} Kf8 {[%emt 0:06:00]} 17. Rh3 {[%emt 0:09:32]} Kg8 {[%emt 0:01:52]} 18. Ng3 {[%emt 0:00:48]} Kh8 {[%emt 0:04:39]} 19. Be2 {[%emt 0:00:49]} Rg6 {[%emt 0:01:39]} 20. Bh5 {[%emt 0:02:58]} Rh6 {[%emt 0:02:53]} 21. Nge2 {[%emt 0:02:47]} Nb4 {[%emt 0:04:49]} 22. Rd1 {[%emt 0:01:55]} Rg8 {[%emt 0:01:29]} 23. Ng1 {[%emt 0:01:12]} Be7 {[%emt 0:05:52]} 24. Qe2 {[%emt 0:02:18]} Qg7 {[%emt 0:03:36]} 25. Rg3 Qf8 {[%emt 0:00:24]} 26. Rxg8+ {[%emt 0:06:30]} Qxg8 {[%emt 0:00:07]} 27. Nh3 {[%emt 0:04:42]} f6 {[%emt 0:03:12]} 28. Bf3 {[%emt 0:02:39]} Bd6 {[%emt 0:01:32]} 29. Rc1 {[%emt 0:04:30]} Rg6 {[%emt 0:01:14]} 30. Nb5 {[%emt 0:01:49]} Bb8 {[%emt 0:00:28]} 31. a3 {[%emt 0:01:24]} Nc6 {[%emt 0:00:16]} 32. Nc3 {[%emt 0:02:09]} Rg7 {[%emt 0:01:35]} 33. b4 {[%emt 0:00:23]} Qe8 {[%emt 0:03:29]} 34. Qf2 {[%emt 0:00:30]} Qf8 {[%emt 0:02:20]} 35. Qc2 {[%emt 0:01:09]} Ne7 {[%emt 0:03:05]} 36. Qf2 {[%emt 0:02:45]} Nc8 {[%emt 0:00:37]} 37. Nb1 {[%emt 0:01:14]} Nd6 {[%emt 0:01:07]} 38. Nd2 {[%emt 0:00:10]} Qd8 {[%emt 0:05:08]} 39. Be2 {[%emt 0:00:46]} Ne4 {[%emt 0:01:26]} 40. Nxe4 {[%emt 0:00:06]} fxe4 {[%emt 0:00:06]} 41. Qh4 {[%emt 0:01:43]} Bd6 {[%emt 0:02:39]} 42. Rb1 {[%emt 0:08:53]} Rg8 {[%emt 0:05:17]} 43. Nf2 {[%emt 0:06:56]} f5 {[%emt 0:09:51]} 44. Qxd8 {[%emt 0:02:12]} Rxd8 {[%emt 0:00:11]} 45. Rc1 {[%emt 0:00:42]} Ra8 {[%emt 0:00:29]} 46. g4 {[%emt 0:04:16]} a5 {[%emt 0:01:31]} 47. Rc2 {[%emt 0:03:05]} axb4 {[%emt 0:01:37]} 48. axb4 {[%emt 0:00:03]} Ra3 {[%emt 0:02:09]} 49. gxf5 {[%emt 0:01:44]} exf5 {[%emt 0:01:38]} 50. Nd1 {[%emt 0:00:28]} Ba4 {[%emt 0:05:50]} 51. Rc8+ {[%emt 0:03:00]} Kg7 {[%emt 0:00:06]} 52. Nc3 {[%emt 0:00:29]} Bc6 {[%emt 0:02:46]} 53. Nxd5 {[%emt 0:02:54]} Bxd5 {[%emt 0:03:41]} 54. Rd8 {[%emt 0:00:03]} Bxb4 {[%emt 0:00:50]} 55. Rxd5 {[%emt 0:00:05]} Rxe3 {[%emt 0:00:03]} 56. Bb5 {[%emt 0:02:00]} Bc3 {[%emt 0:02:29]} 57. Rxf5 {[%emt 0:00:32]} Bxd4 {[%emt 0:01:11]} 58. Rd5 {[%emt 0:00:04]} Re1+ {[%emt 0:01:36]} 59. Kg2 {[%emt 0:00:02]} Rg1+ {[%emt 0:00:03]} 60. Kh3 {[%emt 0:00:03]} Bf6 {[%emt 0:01:56]} 61. Rd2 {[%emt 0:01:50]} Rb1 {[%emt 0:02:32]} 62. Be2 {[%emt 0:00:34]} Kg6 {[%emt 0:00:55]} 63. Rd5 {[%emt 0:00:14]} b6 {[%emt 0:01:28]} 64. Kg2 {[%emt 0:00:34]} Rb3 {[%emt 0:00:48]} 65. Bh5+ {[%emt 0:00:30]} Kh6 {[%emt 0:00:55]} 66. Be2 {[%emt 0:00:04]} Kg7 {[%emt 0:01:37]} 67. Rd7+ {[%emt 0:00:13]} Kg6 {[%emt 0:00:29]} 68. Rd5 {[%emt 0:00:04]} Rc3 {[%emt 0:01:22]} 69. Bh5+ {[%emt 0:00:18]} Kh6 {[%emt 0:01:00]} 70. Be2 {[%emt 0:00:15]} Rc6 {[%emt 0:00:39]} 71. Kf2 {[%emt 0:00:37]} Re6 {[%emt 0:00:27]} 72. Ke3 {[%emt 0:00:20]} Bb2 {[%emt 0:00:51]} 73. Rh5+ {[%emt 0:01:39]} Kg7 {[%emt 0:00:10]} 74. Rg5+ {[%emt 0:00:05]} Kf8 {[%emt 0:00:12]} 75. Bc4 {[%emt 0:01:02]} Bc1+ {[%emt 0:01:06]} 76. Kd4 {[%emt 0:00:20]} Rf6 {[%emt 0:00:27]} 77. Rg8+ {[%emt 0:00:19]} Ke7 {[%emt 0:00:02]} 78. Kxe4 {[%emt 0:00:18]} Rxf4+ {[%emt 0:00:03]} 79. Kd3 {[%emt 0:01:24]} Rh4 {[%emt 0:00:05]} 80. Rg7+ {[%emt 0:00:33]} Kd6 {[%emt 0:00:25]} 81. Bg8 {[%emt 0:00:20]} h6 {[%emt 0:00:04]} 82. Rg6+ {[%emt 0:00:40]} Kc5 {[%emt 0:00:04]} 83. Rg2 {[%emt 0:00:23]} Bf4 {[%emt 0:00:12]} 84. Rc2+ {[%emt 0:00:22]} Kd6 {[%emt 0:00:05]} 85. Rb2 {[%emt 0:00:51]} Kc7 {[%emt 0:00:10]} 86. Rb4 {[%emt 0:00:29]} Rh3+ {[%emt 0:00:06]} 87. Ke4 {[%emt 0:00:33]} Bxh2 {[%emt 0:00:04]} 88. Rb3 {[%emt 0:00:19]} Rh4+ {[%emt 0:00:34]} 89. Kf3 {[%emt 0:00:14]} Bd6 {[%emt 0:00:56]} 90. Rc3+ {[%emt 0:00:40]} Kd7 {[%emt 0:00:02]} 91. Rb3 {[%emt 0:00:48]} Kc6 {[%emt 0:01:14]} 92. Rc3+ {[%emt 0:00:14]} Kb5 {[%emt 0:00:47]} 93. Rd3 {[%emt 0:00:32]} Bc5 {[%emt 0:01:08]} 94. Kg3 {[%emt 0:00:05]} Rh1 {[%emt 0:00:03]} 95. Bd5 {[%emt 0:00:29]} Re1 {[%emt 0:01:00]} 96. Rb3+ {[%emt 0:00:26]} Ka4 {[%emt 0:00:07]} 97. Rb2 {[%emt 0:00:12]} Re5 {[%emt 0:00:31]} 98. Bc6+ {[%emt 0:00:10]} Ka3 {[%emt 0:00:06]} 99. Rd2 {[%emt 0:00:34]} Kb4 {[%emt 0:00:42]} 100. Kh4 {[%emt 0:00:56]} Be7+ {[%emt 0:00:23]} 101. Kh3 {[%emt 0:00:21]} Bc5 {[%emt 0:01:49]} 102. Kh4 {[%emt 0:00:25]} Kc3 {[%emt 0:00:30]} 103. Rd5 {[%emt 0:00:38]} Re6 {[%emt 0:00:33]} 104. Bd7 {[%emt 0:00:07]} Rf6 {[%emt 0:00:42]} 105. Kh5 {[%emt 0:00:18]} Kc4 {[%emt 0:00:49]} 106. Rf5 {[%emt 0:00:37]} Rd6 {[%emt 0:00:03]} 107. Be8 {[%emt 0:00:24]} Be3 {[%emt 0:00:26]} 108. Re5 {[%emt 0:00:40]} Kd4 {[%emt 0:00:14]} 109. Rf5 {[%emt 0:01:07]} Rd8 {[%emt 0:00:51]} 110. Bc6 {[%emt 0:00:42]} Rg8 {[%emt 0:01:21]} 111. Rb5 {[%emt 0:00:59]} Kd3 {[%emt 0:01:05]} 112. Rd5+ {[%emt 0:00:26]} Ke2 {[%emt 0:00:09]} 113. Kh4 {[%emt 0:00:34]} Rg6 {[%emt 0:00:27]} 114. Be8 {[%emt 0:00:24]} Re6 {[%emt 0:00:41]} 115. Bb5+ {[%emt 0:00:19]} Kf3 {[%emt 0:00:15]} 116. Bd7 {[%emt 0:00:40]} Rg6 {[%emt 0:00:28]} 117. Rf5+ {[%emt 0:00:36]} Bf4 {[%emt 0:00:14]} 118. Rf8 {[%emt 0:00:32]} Rd6 {[%emt 0:00:45]} 119. Bg4+ {[%emt 0:00:17]} Ke3 {[%emt 0:00:03]} 120. Re8+ {[%emt 0:00:06]} Kf2 {[%emt 0:00:32]} 121. Re6 {[%emt 0:00:33]} Bg5+ {[%emt 0:00:10]} 122. Kh5 {[%emt 0:00:06]} Rd5 {[%emt 0:00:04]} 123. Kg6 {[%emt 0:00:53]} b5 {[%emt 0:00:59]} 124. Rb6 {[%emt 0:00:29]} Bd8 {[%emt 0:01:16]} 125. Rb8 {[%emt 0:01:05]} Bg5 {[%emt 0:00:55]} 126. Rf8+ {[%emt 0:00:15]} Kg3 {[%emt 0:00:09]} 127. Be6 {[%emt 0:00:32]} Rc5 128. Rf5 {[%emt 0:00:26]} Rc6 {[%emt 0:00:28]} 129. Kf7 {[%emt 0:00:17]} b4 {[%emt 0:00:28]} 130. Rb5 {[%emt 0:00:10]} Bd2 {[%emt 0:01:39]} 131. Rd5 {[%emt 0:00:07]} Rc2 {[%emt 0:00:17]} 132. Kg6 {[%emt 0:00:34]} Kf4 {[%emt 0:00:55]} 133. Rd3 {[%emt 0:01:43]} Ke5 {[%emt 0:00:14]} 134. Bf7 {[%emt 0:00:11]} Rc6+ {[%emt 0:00:29]} 135. Kh5 {[%emt 0:00:16]} Bg5 {[%emt 0:00:28]} 136. Rb3 {[%emt 0:00:33]} Rb6 {[%emt 0:00:19]} 137. Bg8 {[%emt 0:00:15]} Kf6 {[%emt 0:00:19]} 138. Rf3+ {[%emt 0:00:16]} Kg7 {[%emt 0:00:03]} 139. Bb3 {[%emt 0:00:19]} Rb7 {[%emt 0:00:24]} 140. Bd5 {[%emt 0:00:32]} Rd7 {[%emt 0:00:07]} 141. Bb3 {[%emt 0:00:19]} Rb7 {[%emt 0:00:03]} 142. Bd5 {[%emt 0:00:06]} Rb5 {[%emt 0:00:26]} 143. Rf7+ {[%emt 0:00:27]} Kg8 {[%emt 0:00:16]} 144. Rf5+ {[%emt 0:00:06]} Kg7 {[%emt 0:01:00]} 145. Rf7+ {[%emt 0:00:03]} 1/2-1/2

[Event "Arisan Chess Ladies WGM 2019"]
[Site "Modra-Piesok"]
[Date "2019.09.19"]
[Round "7.1"]
[White "Kanakova, Natalie"]
[Black "Dimitrijevic, Aleksandra"]
[Result "0-1"]
[ECO "E68"]
[WhiteElo "2201"]
[BlackElo "2142"]
[Annotator "ChessBase"]
[PlyCount "104"]
[EventDate "2019.09.14"]
[EventType "tourn"]
[EventCountry "SVK"]
[SourceTitle "playchess.com"]
[Source "ChessBase"]
[SourceQuality "1"]
[TimeControl "40/5400+30:1800+30"]

1. c4 {[%emt 0:00:00]} e5 {[%emt 0:00:00]} 2. Nc3 {[%emt 0:01:52]} d6 {[%emt 0:02:07]} 3. g3 {[%emt 0:02:29]} c6 {[%emt 0:00:23]} 4. d4 {[%emt 0:04:44]} Nf6 {[%emt 0:02:24]} 5. Bg2 {[%emt 0:01:26]} Nbd7 {[%emt 0:01:07]} 6. e4 {[%emt 0:02:16]} g6 {[%emt 0:00:09]} 7. Nge2 {[%emt 0:01:55]} Bg7 {[%emt 0:00:08]} 8. O-O {[%emt 0:00:27]} O-O {[%emt 0:00:06]} 9. b3 {[%emt 0:02:25]} exd4 {[%emt 0:04:36]} 10. Nxd4 {[%emt 0:00:38]} Re8 {[%emt 0:00:08]} 11. Bb2 {[%emt 0:04:21]} Nc5 {[%emt 0:00:45]} 12. Re1 {[%emt 0:04:03]} a5 {[%emt 0:01:29]} 13. Qd2 {[%emt 0:00:51]} Qb6 {[%emt 0:00:40]} 14. Rad1 {[%emt 0:07:05]} a4 {[%emt 0:05:32]} 15. Qc2 {[%emt 0:00:42]} axb3 {[%emt 0:09:56]} 16. axb3 {[%emt 0:00:31]} Bg4 {[%emt 0:01:25]} 17. f3 {[%emt 0:02:32]} Bc8 {[%emt 0:04:08]} 18. Kh1 {[%emt 0:00:10]} Nfd7 {[%emt 0:06:27]} 19. Nce2 {[%emt 0:04:51]} Ra2 {[%emt 0:03:21]} 20. Nc1 {[%emt 0:02:01]} Rxb2 {[%emt 0:04:23]} 21. Qxb2 {[%emt 0:00:08]} Ne6 {[%emt 0:00:03]} 22. e5 {[%emt 0:14:19]} Bxe5 {[%emt 0:01:24]} 23. Qf2 {[%emt 0:02:47]} Ndf8 {[%emt 0:24:02]} 24. Qe3 {[%emt 0:05:59]} Nxd4 {[%emt 0:15:55]} 25. Rxd4 {[%emt 0:00:30]} Bd7 {[%emt 0:00:30]} 26. Re4 {[%emt 0:00:30]} Bd4 {[%emt 0:00:30]} 27. Qd2 {[%emt 0:00:30]} Rxe4 {[%emt 0:00:30]} 28. Rxe4 {[%emt 0:00:30]} Bc5 {[%emt 0:00:30]} 29. Re2 {[%emt 0:00:30]} Be6 {[%emt 0:00:30]} 30. Qc2 {[%emt 0:00:30]} Bd4 {[%emt 0:00:30]} 31. Nd3 {[%emt 0:00:30]} Qa6 {[%emt 0:00:30]} 32. Qa2 {[%emt 0:00:30]} Qb6 33. Nf4 {[%emt 0:24:15]} Bd7 {[%emt 0:01:00]} 34. Bh3 {[%emt 0:02:00]} Bxh3 {[%emt 0:01:38]} 35. Nxh3 {[%emt 0:00:03]} Ne6 {[%emt 0:00:06]} 36. Re4 {[%emt 0:01:44]} d5 {[%emt 0:00:13]} 37. Re2 {[%emt 0:01:26]} Kg7 {[%emt 0:01:14]} 38. Kg2 {[%emt 0:03:39]} Qb4 {[%emt 0:00:31]} 39. cxd5 {[%emt 0:01:35]} cxd5 {[%emt 0:00:04]} 40. Qa4 {[%emt 0:02:00]} Qc3 {[%emt 0:01:34]} 41. Qb5 {[%emt 0:04:06]} Bc5 {[%emt 0:01:46]} 42. Qxb7 {[%emt 0:08:50]} Nd4 {[%emt 0:00:08]} 43. Rf2 {[%emt 0:00:06]} Nf5 {[%emt 0:00:34]} 44. Re2 {[%emt 0:07:34]} Ne3+ {[%emt 0:03:09]} 45. Kf2 {[%emt 0:00:33]} Qc1 {[%emt 0:01:36]} 46. Rxe3 {[%emt 0:03:32]} Qxe3+ {[%emt 0:00:07]} 47. Kf1 {[%emt 0:00:01]} Qxf3+ {[%emt 0:00:10]} 48. Ke1 {[%emt 0:00:15]} Qh1+ {[%emt 0:00:05]} 49. Ke2 {[%emt 0:00:17]} Qxh2+ {[%emt 0:00:06]} 50. Kd3 {[%emt 0:00:29]} Qxg3+ {[%emt 0:00:07]} 51. Kd2 {[%emt 0:00:09]} Qxh3 {[%emt 0:00:07]} 52. Qxd5 {[%emt 0:00:03]} Qf5 {[%emt 0:00:21]} 0-1

[Event "Arisan Chess Ladies WGM 2019"]
[Site "Modra-Piesok"]
[Date "2019.09.19"]
[Round "7.2"]
[White "Gvanceladze, Anna"]
[Black "Trippold, Denise"]
[Result "1/2-1/2"]
[ECO "D05"]
[WhiteElo "2247"]
[BlackElo "2184"]
[Annotator "ChessBase"]
[PlyCount "93"]
[EventDate "2019.09.14"]
[EventType "tourn"]
[EventCountry "SVK"]
[SourceTitle "playchess.com"]
[Source "ChessBase"]
[SourceQuality "1"]
[TimeControl "40/5400+30:1800+30"]

1. d4 {[%emt 0:01:01]} Nf6 {[%emt 0:00:00]} 2. Nf3 {[%emt 0:00:06]} e6 {[%emt 0:00:00]} 3. e3 {[%emt 0:00:23]} d5 {[%emt 0:02:02]} 4. Bd3 {[%emt 0:00:26]} c5 {[%emt 0:00:38]} 5. b3 {[%emt 0:00:07]} Nc6 {[%emt 0:00:08]} 6. O-O {[%emt 0:00:28]} Bd6 {[%emt 0:00:04]} 7. dxc5 {[%emt 0:01:25]} Bxc5 {[%emt 0:00:08]} 8. Bb2 {[%emt 0:00:03]} O-O {[%emt 0:00:48]} 9. Nbd2 {[%emt 0:00:29]} b6 {[%emt 0:08:56]} 10. a3 {[%emt 0:01:53]} Bb7 {[%emt 0:06:40]} 11. Qe2 {[%emt 0:00:10]} Rc8 {[%emt 0:02:03]} 12. Rad1 {[%emt 0:10:25]} Be7 {[%emt 0:08:01]} 13. Rfe1 {[%emt 0:04:03]} Qc7 {[%emt 0:04:20]} 14. e4 {[%emt 0:04:06]} Rfd8 {[%emt 0:01:51]} 15. c4 {[%emt 0:11:49]} dxc4 {[%emt 0:26:08]} 16. Nxc4 {[%emt 0:00:42]} b5 {[%emt 0:01:54]} 17. Ne3 {[%emt 0:03:41]} a6 {[%emt 0:00:21]} 18. h4 {[%emt 0:09:18]} h6 {[%emt 0:12:39]} 19. e5 {[%emt 0:08:55]} Nd7 {[%emt 0:00:58]} 20. Ng4 {[%emt 0:02:16]} Na5 {[%emt 0:00:50]} 21. Qe3 {[%emt 0:28:02]} Bf8 {[%emt 0:00:30]} 22. Bb1 {[%emt 0:00:30]} h5 {[%emt 0:00:30]} 23. Nf6+ Kh8 {[%emt 0:21:12]} 24. Qg5 {[%emt 0:01:00]} g6 {[%emt 0:00:13]} 25. Bxg6 {[%emt 0:05:38]} Bxf3 {[%emt 0:00:01]} 26. Bxh5 {[%emt 0:02:34]} Nxf6 {[%emt 0:01:08]} 27. Qxf6+ {[%emt 0:00:06]} Bg7 {[%emt 0:00:04]} 28. Qxf3 {[%emt 0:02:08]} Kg8 {[%emt 0:00:01]} 29. Rxd8+ {[%emt 0:00:53]} Rxd8 {[%emt 0:00:01]} 30. Rc1 {[%emt 0:00:03]} Qe7 {[%emt 0:00:30]} 31. Qc3 {[%emt 0:00:37]} Qxh4 {[%emt 0:01:29]} 32. Qxa5 {[%emt 0:00:20]} Bh6 {[%emt 0:00:39]} 33. g3 {[%emt 0:01:12]} Qg5 {[%emt 0:01:00]} 34. Rf1 {[%emt 0:00:31]} Rd3 {[%emt 0:00:31]} 35. Bxf7+ {[%emt 0:00:57]} Kxf7 {[%emt 0:00:28]} 36. Qc7+ {[%emt 0:00:08]} Kg8 {[%emt 0:00:32]} 37. Kg2 {[%emt 0:00:47]} Qg4 {[%emt 0:00:16]} 38. Qc8+ {[%emt 0:00:41]} Kf7 {[%emt 0:00:26]} 39. Qc7+ {[%emt 0:00:40]} Kg8 {[%emt 0:00:05]} 40. Qb8+ {[%emt 0:00:22]} Kg7 {[%emt 0:00:20]} 41. Qb7+ {[%emt 0:02:22]} Kg6 {[%emt 0:06:15]} 42. Qc6 {[%emt 0:03:07]} Kg7 {[%emt 0:03:16]} 43. b4 {[%emt 0:03:43]} Bf4 {[%emt 0:05:09]} 44. Qb7+ {[%emt 0:18:14]} Kg8 {[%emt 0:00:05]} 45. Qc8+ {[%emt 0:00:45]} Kg7 {[%emt 0:00:25]} 46. Qb7+ {[%emt 0:00:44]} Kg8 {[%emt 0:00:38]} 47. Qc8+ {[%emt 0:00:07]} 1/2-1/2

[Event "Arisan Chess Ladies WGM 2019"]
[Site "Modra-Piesok"]
[Date "2019.09.19"]
[Round "7.3"]
[White "Cibickova, Zuzana"]
[Black "Kantorik, Marian"]
[Result "1/2-1/2"]
[ECO "C06"]
[WhiteElo "2244"]
[BlackElo "2150"]
[Annotator "NA"]
[PlyCount "41"]
[EventDate "2019.09.14"]
[EventType "tourn"]
[EventCountry "SVK"]
[SourceTitle "playchess.com"]
[Source "ChessBase"]
[SourceQuality "1"]
[TimeControl "40/5400+30:1800+30"]

1. e4 {[%emt 0:00:00]} e6 {[%emt 0:02:45]} 2. d4 {[%emt 0:00:00]} d5 {[%emt 0:00:24]} 3. Nd2 {[%emt 0:01:43]} Nf6 {[%emt 0:01:12]} 4. e5 {[%emt 0:00:12]} Nfd7 {[%emt 0:00:11]} 5. Bd3 {[%emt 0:00:09]} c5 {[%emt 0:00:31]} 6. c3 {[%emt 0:00:04]} Nc6 {[%emt 0:00:30]} 7. Ne2 {[%emt 0:01:01]} cxd4 {[%emt 0:00:47]} 8. cxd4 {[%emt 0:00:06]} f6 {[%emt 0:00:30]} 9. exf6 {[%emt 0:00:17]} Qxf6 {[%emt 0:00:10]} 10. O-O {[%emt 0:03:38]} Bd6 {[%emt 0:03:29]} 11. Nf3 {[%emt 0:00:21]} h6 {[%emt 0:00:27]} 12. Bc2 {[%emt 0:02:08]} O-O {[%emt 0:01:44]} 13. Qd3 {[%emt 0:00:16]} Rd8 {[%emt 0:00:43]} 14. Qh7+ {[%emt 0:02:50]} Kf7 {[%emt 0:00:17]} 15. Ng3 {[%emt 0:00:52]} Nf8 {[%emt 0:00:54]} 16. Qh8 {[%emt 0:00:40]} Ng6 {[%emt 0:00:28]} 17. Qh7 {[%emt 0:00:05]} Nf8 {[%emt 0:00:15]} 18. Qh8 {[%emt 0:00:13]} Ng6 {[%emt 0:00:39]} 19. Qh7 {[%emt 0:00:10]} Nf8 {[%emt 0:00:26]} 20. Qh8 {[%emt 0:00:19]} Ng6 {[%emt 0:00:17]} 21. Qh7 {[%emt 0:00:27]} 1/2-1/2

[Event "Arisan Chess Ladies WGM 2019"]
[Site "Modra-Piesok"]
[Date "2019.09.19"]
[Round "8.2"]
[White "Kantorik, Marian"]
[Black "Gvanceladze, Anna"]
[Result "0-1"]
[ECO "B13"]
[WhiteElo "2150"]
[BlackElo "2247"]
[Annotator "ChessBase"]
[PlyCount "116"]
[EventDate "2019.09.14"]
[EventType "tourn"]
[EventCountry "SVK"]
[SourceTitle "playchess.com"]
[Source "ChessBase"]
[SourceQuality "1"]
[TimeControl "40/5400+30:1800+30"]

1. e4 {[%emt 0:00:00]} c6 {[%emt 0:00:25]} 2. d4 {[%emt 0:00:00]} d5 {[%emt 0:00:04]} 3. exd5 {[%emt 0:00:00]} cxd5 {[%emt 0:00:03]} 4. Bd3 {[%emt 0:00:11]} Nc6 {[%emt 0:00:04]} 5. c3 {[%emt 0:00:11]} Qc7 {[%emt 0:00:03]} 6. Ne2 {[%emt 0:00:19]} Bg4 {[%emt 0:00:07]} 7. O-O {[%emt 0:01:52]} e6 {[%emt 0:00:03]} 8. Qe1 {[%emt 0:00:27]} Bxe2 {[%emt 0:00:32]} 9. Qxe2 {[%emt 0:00:27]} Bd6 {[%emt 0:00:05]} 10. h3 {[%emt 0:01:21]} Nf6 {[%emt 0:04:19]} 11. Nd2 {[%emt 0:05:07]} O-O {[%emt 0:07:52]} 12. Nf3 {[%emt 0:05:24]} Bf4 {[%emt 0:01:16]} 13. Re1 {[%emt 0:01:23]} Rfc8 {[%emt 0:01:10]} 14. a4 {[%emt 0:05:49]} a6 {[%emt 0:02:48]} 15. Bxf4 {[%emt 0:03:21]} Qxf4 {[%emt 0:00:04]} 16. Ne5 {[%emt 0:03:09]} Nxe5 {[%emt 0:02:31]} 17. dxe5 {[%emt 0:03:06]} Nd7 {[%emt 0:00:06]} 18. a5 {[%emt 0:02:08]} Rc5 {[%emt 0:01:24]} 19. Qe3 {[%emt 0:10:31]} Qxe3 {[%emt 0:00:11]} 20. Rxe3 {[%emt 0:00:04]} Rac8 {[%emt 0:00:08]} 21. Ra4 {[%emt 0:00:52]} Nb8 {[%emt 0:06:40]} 22. Ra3 {[%emt 0:08:41]} g6 {[%emt 0:01:30]} 23. Kf1 {[%emt 0:01:47]} Rd8 {[%emt 0:04:21]} 24. b4 {[%emt 0:03:02]} Rc7 {[%emt 0:00:19]} 25. g3 {[%emt 0:09:20]} Kg7 {[%emt 0:00:45]} 26. Be2 {[%emt 0:01:19]} Nd7 {[%emt 0:01:41]} 27. Kg2 {[%emt 0:00:32]} Nb8 {[%emt 0:01:16]} 28. Ra1 {[%emt 0:03:08]} Rdc8 {[%emt 0:00:19]} 29. Ra3 {[%emt 0:00:05]} Nc6 {[%emt 0:00:14]} 30. Bf3 {[%emt 0:06:52]} Ne7 {[%emt 0:03:59]} 31. Be2 {[%emt 0:03:22]} g5 {[%emt 0:01:19]} 32. Rb3 {[%emt 0:02:51]} h6 {[%emt 0:00:32]} 33. Ra3 {[%emt 0:00:21]} Rd8 {[%emt 0:00:21]} 34. Rb3 {[%emt 0:02:28]} Nc6 {[%emt 0:01:03]} 35. Bf3 {[%emt 0:01:17]} Na7 {[%emt 0:00:52]} 36. Be2 {[%emt 0:00:27]} Nb5 {[%emt 0:06:06]} 37. Bxb5 {[%emt 0:00:53]} axb5 {[%emt 0:00:19]} 38. Rd3 {[%emt 0:02:20]} Rc4 {[%emt 0:00:39]} 39. Kf3 {[%emt 0:07:44]} h5 {[%emt 0:00:16]} 40. Ke2 {[%emt 0:00:58]} Kg6 {[%emt 0:01:25]} 41. Ra3 {[%emt 0:32:47]} Ra8 {[%emt 0:30:19]} 42. f3 {[%emt 0:04:20]} Kf5 {[%emt 0:02:11]} 43. Re3 {[%emt 0:00:24]} h4 {[%emt 0:07:24]} 44. g4+ {[%emt 0:00:00]} Kf4 {[%emt 0:00:00]} 45. Kf2 {[%emt 0:00:00]} Ra6 {[%emt 0:00:00]} 46. Ra1 {[%emt 0:00:00]} Ra7 {[%emt 0:00:00]} 47. Rae1 {[%emt 0:00:00]} b6 {[%emt 0:00:00]} 48. axb6 {[%emt 0:00:00]} Ra2+ {[%emt 0:00:00]} 49. R1e2 {[%emt 0:00:00]} Rxe2+ {[%emt 0:00:00]} 50. Rxe2 {[%emt 0:00:00]} Rc6 {[%emt 0:00:00]} 51. Ra2 {[%emt 0:00:00]} Rxb6 {[%emt 0:00:00]} 52. Ra7 {[%emt 0:00:00]} Rc6 {[%emt 0:00:00]} 53. Rxf7+ {[%emt 0:00:00]} Kxe5 {[%emt 0:00:00]} 54. Rg7 {[%emt 0:00:00]} Rxc3 {[%emt 0:00:00]} 55. Rxg5+ {[%emt 0:00:00]} Kf4 {[%emt 0:00:00]} 56. Rh5 {[%emt 0:00:00]} Rxf3+ {[%emt 0:00:00]} 57. Kg2 {[%emt 0:00:00]} Rg3+ {[%emt 0:00:00]} 58. Kh2 {[%emt 0:00:00]} Rb3 {[%emt 0:00:00]} 0-1

[Event "Arisan Chess Ladies WGM 2019"]
[Site "Modra-Piesok"]
[Date "2019.09.19"]
[Round "8.3"]
[White "Trippold, Denise"]
[Black "Kanakova, Natalie"]
[Result "1-0"]
[ECO "E04"]
[WhiteElo "2184"]
[BlackElo "2201"]
[Annotator "NA"]
[PlyCount "65"]
[EventDate "2019.09.14"]
[EventType "tourn"]
[EventCountry "SVK"]
[SourceTitle "playchess.com"]
[Source "ChessBase"]
[SourceQuality "1"]
[TimeControl "40/5400+30:1800+30"]

1. d4 {[%emt 0:00:00]} d5 {[%emt 0:00:00]} 2. Nf3 {[%emt 0:00:00]} Nf6 {[%emt 0:00:36]} 3. c4 {[%emt 0:00:03]} dxc4 {[%emt 0:00:58]} 4. g3 {[%emt 0:05:55]} c5 {[%emt 0:07:01]} 5. Bg2 {[%emt 0:05:27]} Nc6 {[%emt 0:01:42]} 6. Na3 {[%emt 0:04:10]} e6 {[%emt 0:01:47]} 7. O-O {[%emt 0:00:07]} cxd4 {[%emt 0:02:42]} 8. Nxc4 {[%emt 0:00:19]} Bc5 {[%emt 0:01:52]} 9. a3 {[%emt 0:05:31]} a5 {[%emt 0:00:40]} 10. Nfe5 {[%emt 0:05:51]} Nxe5 {[%emt 0:04:36]} 11. Nxe5 {[%emt 0:00:05]} O-O {[%emt 0:00:55]} 12. Nd3 {[%emt 0:00:15]} Bd6 {[%emt 0:05:52]} 13. Bf4 {[%emt 0:05:09]} Bxf4 {[%emt 0:06:45]} 14. gxf4 {[%emt 0:00:06]} Nd5 {[%emt 0:03:26]} 15. Qa4 {[%emt 0:12:06]} Qf6 {[%emt 0:09:15]} 16. Rfd1 {[%emt 0:10:09]} b5 {[%emt 0:07:11]} 17. Qc2 {[%emt 0:18:22]} Bb7 {[%emt 0:03:52]} 18. Qd2 {[%emt 0:00:37]} Rab8 {[%emt 0:02:14]} 19. Rac1 {[%emt 0:05:33]} a4 {[%emt 0:07:44]} 20. Rc5 {[%emt 0:00:56]} Ba8 {[%emt 0:01:49]} 21. Rdc1 {[%emt 0:02:29]} h5 {[%emt 0:01:36]} 22. Kh1 {[%emt 0:04:42]} Rfd8 {[%emt 0:03:27]} 23. R1c2 {[%emt 0:01:03]} h4 {[%emt 0:02:18]} 24. h3 {[%emt 0:00:13]} Qg6 {[%emt 0:04:03]} 25. Bf3 {[%emt 0:03:58]} Nf6 {[%emt 0:07:28]} 26. Bxa8 {[%emt 0:07:57]} Rxa8 {[%emt 0:00:03]} 27. Rxb5 {[%emt 0:00:06]} Ne4 {[%emt 0:04:38]} 28. Qc1 {[%emt 0:00:11]} Nd6 {[%emt 0:05:04]} 29. Rbc5 {[%emt 0:00:06]} Ne4 {[%emt 0:00:45]} 30. Rc7 {[%emt 0:02:01]} Qf5 {[%emt 0:00:17]} 31. Kh2 {[%emt 0:00:01]} Rd5 {[%emt 0:02:39]} 32. Rc8+ {[%emt 0:01:45]} Kh7 {[%emt 0:00:05]} 33. Rxa8 {[%emt 0:00:08]} 1-0